bitfinex/quotes_SOLUSD_20251117
["timestamp","ask_amount","ask_price","bid_price","bid_amount"]
[1763362672729,0.69,141.65,141.62,0.7]
[1763362674040,1.79095569,141.67,141.62,25.14215569]
[1763362674343,104.89095569,141.68,141.63,24.44215569]
[1763362674533,103.79,141.68,141.64,0.7]
[1763362674728,103.1,141.68,141.64,2.49095569]
[1763362674933,103.79,141.68,141.64,0.7]
[1763362675124,103.79,141.68,141.65,0.7]
[1763362675320,0.69,141.68,141.65,0.7]
[1763362675536,1.79095569,141.69,141.63,31.50242717]
[1763362675728,0.69,141.67,141.64,0.7]
[1763362675931,0.69,141.68,141.64,0.7]
[1763362676125,0.69,141.7,141.65,1.79095569]
[1763362676340,2.48095569,141.7,141.66,0.7]
[1763362676946,0.69,141.69,141.66,0.7]
[1763362679342,1.79095569,141.7,141.66,0.7]
[1763362679565,2.48095569,141.71,141.66,9.55010148]
[1763362679727,0.69,141.72,141.66,9.55010148]
[1763362679928,1.79095569,141.71,141.67,0.7]
[1763362680446,0.66,141.71,141.67,0.7]
[1763362680649,0.66,141.7,141.67,0.7]
[1763362680933,1.79095569,141.71,141.67,0.7]
[1763362681147,0.86,141.73,141.67,9.54961158]
[1763362681343,1.79095569,141.72,141.67,9.54961158]
[1763362681544,0.66,141.72,141.68,0.65]
[1763362681853,2.45095569,141.72,141.68,0.65]
[1763362682654,0.66,141.71,141.68,0.65]
[1763362683154,1.79095569,141.72,141.68,0.65]
[1763362683459,2.45095569,141.72,141.68,0.65]
[1763362686949,2.45095569,141.71,141.68,0.65]
[1763362687353,0.66,141.71,141.68,0.65]
[1763362688049,1.79095569,141.71,141.68,0.65]
[1763362688256,2.45095569,141.72,141.68,0.65]
[1763362689368,0.66,141.72,141.68,0.65]
[1763362689665,2.45095569,141.72,141.68,0.65]
[1763362690676,1.79095569,141.72,141.68,0.65]
[1763362690850,2.45095569,141.72,141.68,0.65]
[1763362691353,2.45095569,141.71,141.68,0.65]
[1763362691552,1.79095569,141.71,141.68,0.65]
[1763362691744,2.45095569,141.71,141.68,0.65]
[1763362692459,2.45095569,141.7,141.66,0.65]
[1763362692653,2.45095569,141.7,141.65,32.44002769]
[1763362692854,2.45095569,141.69,141.65,22.6512]
[1763362693060,7.16382276,141.72,141.65,23.3012]
[1763362693061,2.45095569,141.68,141.65,23.3012]
[1763362693255,2.45095569,141.68,141.65,22.6512]
[1763362693452,2.45095569,141.68,141.65,0.65]
[1763362693667,2.45095569,141.68,141.65,23.3012]
[1763362693871,7.16382276,141.72,141.64,0.65]
[1763362693872,2.45095569,141.67,141.64,0.65]
[1763362694170,2.45095569,141.67,141.62,30.46502276]
[1763362694364,2.45095569,141.66,141.62,7.81382276]
[1763362694563,0.66,141.66,141.63,22.6512]
[1763362694865,1.79095569,141.66,141.63,22.6512]
[1763362695074,0.66,141.65,141.63,22.6512]
[1763362695252,1.79095569,141.66,141.63,22.6512]
[1763362695442,2.45095569,141.66,141.63,23.3012]
[1763362695748,0.66,141.65,141.63,22.6512]
[1763362696562,2.45095569,141.66,141.63,23.3012]
[1763362696775,0.66,141.65,141.63,22.6512]
[1763362697646,1.79095569,141.66,141.63,23.3212]
[1763362697851,2.51095569,141.66,141.63,23.3212]
[1763362698067,0.72,141.66,141.63,23.3212]
[1763362702699,0.72,141.66,141.63,0.67]
[1763362703804,0.72,141.66,141.63,23.3212]
[1763362704490,0.72,141.66,141.63,22.6512]
[1763362704883,0.72,141.66,141.62,22.6512]
[1763362705115,1.79095569,141.64,141.59,38.85015915]
[1763362705303,0.72,141.66,141.59,38.85015915]
[1763362705304,1.79095569,141.63,141.59,17.63]
[1763362705601,0.72,141.62,141.59,17.63]
[1763362705815,1.79095569,141.62,141.6,23.3212]
[1763362706003,2.51095569,141.62,141.59,17.63]
[1763362706316,0.72,141.61,141.59,16.96]
[1763362706612,0.72,141.61,141.59,39.6112]
[1763362706983,1.79095569,141.63,141.59,39.6112]
[1763362707199,0.72,141.6,141.59,39.6112]
[1763362707383,0.72,141.62,141.59,39.6112]
[1763362707900,0.72,141.62,141.59,16.96]
[1763362708204,0.72,141.62,141.59,17.63]
[1763362708789,0.72,141.65,141.6,0.67]
[1763362708990,1.79095569,141.64,141.6,0.67]
[1763362709308,0.72,141.63,141.6,0.67]
[1763362710199,2.51095569,141.64,141.6,0.67]
[1763362710889,2.50095569,141.64,141.6,0.67]
[1763362711210,2.50095569,141.65,141.6,2.46095569]
[1763362711712,0.71,141.64,141.61,0.66]
[1763362712085,1.79095569,141.65,141.61,0.66]
[1763362712287,2.50095569,141.67,141.62,22.6512]
[1763362712507,0.71,141.67,141.62,24.44215569]
[1763362712714,0.71,141.67,141.63,0.66]
[1763362715723,2.50095569,141.67,141.63,0.66]
[1763362716013,0.71,141.66,141.63,0.66]
[1763362718487,0.71,141.66,141.62,22.6512]
[1763362718488,0.71,141.66,141.62,23.3112]
[1763362718692,0.71,141.66,141.63,0.66]
[1763362719191,3.50798505,141.66,141.63,0.66]
[1763362721327,3.50798505,141.65,141.59,7.72253891]
[1763362721521,2.79798505,141.64,141.61,22.6512]
[1763362721694,3.50798505,141.64,141.61,22.6512]
[1763362721894,0.71,141.63,141.61,22.6512]
[1763362723488,0.71,141.63,141.6,23.3112]
[1763362723698,2.79798505,141.62,141.57,17.62]
[1763362724004,2.79798505,141.62,141.57,42.40918505]
[1763362724197,3.50798505,141.62,141.58,0.66]
[1763362724607,2.79798505,141.62,141.58,0.66]
[1763362724796,3.50798505,141.63,141.58,0.66]
[1763362725421,3.50798505,141.63,141.58,3.45798505]
[1763362725616,2.79798505,141.63,141.58,3.45798505]
[1763362725814,0.71,141.62,141.59,0.66]
[1763362727094,3.50798505,141.63,141.59,0.66]
[1763362727819,2.79798505,141.63,141.59,0.66]
[1763362728120,0.71,141.62,141.59,0.66]
[1763362729122,2.79798505,141.63,141.59,0.66]
[1763362729308,3.50798505,141.63,141.59,0.66]
[1763362729622,2.79798505,141.63,141.59,0.66]
[1763362729817,3.50798505,141.64,141.59,0.66]
[1763362730293,0.71,141.63,141.59,0.66]
[1763362731524,3.50798505,141.63,141.59,0.66]
[1763362733623,0.71,141.63,141.59,0.66]
[1763362737540,3.50798505,141.63,141.59,0.66]
[1763362738141,0.71,141.63,141.59,0.66]
[1763362739431,3.50798505,141.64,141.59,0.66]
[1763362739830,2.79798505,141.64,141.59,0.66]
[1763362740026,103.1,141.65,141.6,2.79798505]
[1763362740221,3.50798505,141.66,141.61,2.79798505]
[1763362740534,2.79798505,141.66,141.6,3.45798505]
[1763362740739,3.48798505,141.66,141.6,3.45798505]
[1763362741037,3.48798505,141.66,141.61,0.66]
[1763362742423,2.79798505,141.66,141.61,0.66]
[1763362742619,2.79798505,141.66,141.59,29.71371599]
[1763362742620,2.79798505,141.63,141.59,23.3112]
[1763362743123,3.48798505,141.62,141.59,23.3112]
[1763362743325,0.69,141.62,141.59,23.3112]
[1763362743832,3.48798505,141.62,141.59,23.3112]
[1763362745237,0.69,141.61,141.59,22.6512]
[1763362745739,3.48798505,141.62,141.59,23.3112]
[1763362746139,2.79798505,141.62,141.59,22.6512]
[1763362746327,2.79798505,141.62,141.59,23.3112]
[1763362746525,3.48798505,141.62,141.59,23.3112]
[1763362746936,0.69,141.62,141.59,23.3112]
[1763362747936,3.48798505,141.62,141.59,22.6512]
[1763362748541,0.69,141.61,141.59,22.6512]
[1763362749342,3.48798505,141.63,141.6,0.66]
[1763362749517,0.69,141.63,141.6,0.66]
[1763362752038,3.48798505,141.64,141.6,0.66]
[1763362752339,0.69,141.64,141.6,0.66]
[1763362752918,3.48798505,141.65,141.6,7.72198729]
[1763362753139,3.48798505,141.65,141.61,0.66]
[1763362753140,0.69,141.65,141.61,0.66]
[1763362753544,105.89798505,141.66,141.61,0.66]
[1763362753841,106.58798505,141.66,141.61,0.66]
[1763362754035,106.58798505,141.66,141.61,7.72151526]
[1763362754536,106.58798505,141.66,141.62,0.66]
[1763362756149,3.48798505,141.65,141.62,0.66]
[1763362757748,0.69,141.65,141.62,0.66]
[1763362757924,3.48798505,141.65,141.62,0.66]
[1763362759532,0.71,141.64,141.61,0.72]
[1763362763158,2.79798505,141.63,141.59,23.3712]
[1763362763658,0.71,141.62,141.59,23.3712]
[1763362763853,3.50798505,141.62,141.59,22.6512]
[1763362764239,0.71,141.61,141.57,0.72]
[1763362764440,3.50798505,141.61,141.56,0.72]
[1763362764646,2.79798505,141.6,141.58,22.6512]
[1763362764862,3.50798505,141.61,141.58,22.6512]
[1763362765360,0.71,141.6,141.58,22.6512]
[1763362765547,2.79798505,141.62,141.57,23.3712]
[1763362765858,0.71,141.61,141.57,23.3712]
[1763362766057,0.71,141.61,141.58,22.6512]
[1763362766760,0.71,141.61,141.57,23.3712]
[1763362767259,0.71,141.61,141.58,22.6512]
[1763362767754,2.79798505,141.63,141.59,0.72]
[1763362768365,0.71,141.62,141.59,0.72]
[1763362769670,2.79798505,141.64,141.59,0.72]
[1763362769857,0.71,141.63,141.59,0.72]
[1763362770258,3.50798505,141.64,141.59,10.58044334]
[1763362770774,0.71,141.64,141.59,10.58044334]
[1763362770943,0.71,141.64,141.6,0.71]
[1763362771750,106.57798505,141.66,141.6,33.22126502]
[1763362772170,0.68,141.65,141.61,0.71]
[1763362772370,3.47798505,141.65,141.61,0.71]
[1763362772869,0.68,141.64,141.6,32.38301395]
[1763362773353,0.68,141.64,141.6,29.5850289]
[1763362773538,0.68,141.64,141.6,32.38301395]
[1763362773748,0.68,141.64,141.6,22.6512]
[1763362775975,0.68,141.64,141.61,0.71]
[1763362776511,0.68,141.64,141.6,33.22132793]
[1763362780316,0.68,141.64,141.6,26.15918505]
[1763362780892,0.68,141.64,141.6,25.15216098]
[1763362782715,0.68,141.64,141.6,24.44216098]
[1763362782914,0.68,141.64,141.61,0.71]
[1763362785412,0.68,141.64,141.6,2.50096098]
[1763362785725,0.68,141.64,141.6,25.15216098]
[1763362791032,0.68,141.64,141.6,23.3612]
[1763362791714,0.68,141.64,141.6,22.6512]
[1763362791906,0.68,141.64,141.61,0.71]
[1763362792836,0.68,141.64,141.6,22.6512]
[1763362793033,0.68,141.64,141.6,23.3612]
[1763362793631,0.68,141.64,141.6,22.6512]
[1763362793837,2.47096098,141.64,141.61,22.6512]
[1763362794221,2.47096098,141.63,141.6,22.6512]
[1763362794424,1.79096098,141.62,141.57,0.71]
[1763362794738,2.47096098,141.62,141.59,22.6512]
[1763362794912,0.68,141.61,141.59,22.6512]
[1763362796038,0.68,141.61,141.56,1.79096098]
[1763362796039,2.47096098,141.61,141.56,1.79096098]
[1763362796224,2.47096098,141.61,141.56,2.50096098]
[1763362796419,0.68,141.6,141.56,2.50096098]
[1763362797226,0.68,141.6,141.56,0.71]
[1763362797532,0.68,141.6,141.56,7.77411319]
[1763362797842,0.68,141.6,141.56,9.56507417]
[1763362798613,0.68,141.6,141.56,2.50096098]
[1763362800638,1.79096098,141.62,141.56,8.85507287]
[1763362800840,2.45096098,141.64,141.59,24.44216098]
[1763362801027,0.66,141.63,141.59,25.16216098]
[1763362801343,2.45096098,141.63,141.59,22.6512]
[1763362801525,0.66,141.62,141.59,22.6512]
[1763362802227,0.66,141.64,141.6,25.16216098]
[1763362802420,0.66,141.65,141.61,9.57260916]
[1763362802617,1.79096098,141.69,141.63,1.79096098]
[1763362802838,0.66,141.68,141.64,1.79096098]
[1763362803347,0.66,141.68,141.64,25.16216098]
[1763362803548,0.86,141.73,141.69,22.6512]
[1763362804045,0.66,141.72,141.69,22.6512]
[1763362804253,0.66,141.72,141.68,25.16216098]
[1763362804745,2.45096098,141.72,141.69,22.6512]
[1763362805344,0.66,141.71,141.69,22.6512]
[1763362808258,0.66,141.71,141.68,22.6512]
[1763362808548,0.66,141.71,141.68,25.16216098]
[1763362808733,0.66,141.72,141.68,32.22006839]
[1763362810142,0.66,141.72,141.68,23.3712]
[1763362810353,0.66,141.72,141.68,22.6512]
[1763362811032,0.2,141.73,141.69,2.51096098]
[1763362811259,0.86,141.73,141.69,2.51096098]
[1763362811550,0.86,141.73,141.7,0.72]
[1763362811740,0.86,141.73,141.69,0.72]
[1763362812544,0.66,141.72,141.69,23.3712]
[1763362813246,0.66,141.72,141.69,0.72]
[1763362814155,0.2,141.73,141.7,1.79096098]
[1763362814348,0.2,141.73,141.72,22.6512]
[1763362814545,0.86,141.73,141.72,22.6512]
[1763362815353,2.65096098,141.73,141.68,1.79096098]
[1763362815557,0.66,141.72,141.68,26.19915432]
[1763362815757,1.79096098,141.71,141.65,26.51675802]
[1763362815929,1.79096098,141.69,141.65,16.96]
[1763362816130,1.79096098,141.69,141.65,39.6112]
[1763362816332,0.66,141.68,141.65,16.96]
[1763362816636,2.45096098,141.68,141.65,16.96]
[1763362817250,1.79096098,141.68,141.65,16.96]
[1763362817454,0.68,141.67,141.65,16.96]
[1763362818941,1.79096098,141.68,141.65,16.96]
[1763362819145,0.68,141.67,141.65,16.96]
[1763362819733,0.68,141.7,141.66,25.15216098]
[1763362819948,0.68,141.7,141.66,23.3612]
[1763362819949,2.47096098,141.7,141.66,23.3612]
[1763362820154,0.68,141.69,141.66,22.6512]
[1763362820657,0.68,141.71,141.67,2.50096098]
[1763362820838,0.88,141.73,141.68,23.3612]
[1763362821039,1.79096098,141.72,141.68,23.3612]
[1763362821266,2.47096098,141.72,141.68,23.3612]
[1763362821666,1.79096098,141.72,141.68,23.3612]
[1763362821963,0.68,141.71,141.68,22.6512]
[1763362822828,0.68,141.71,141.65,16.96]
[1763362822829,1.79096098,141.69,141.65,16.96]
[1763362823059,1.79096098,141.68,141.65,16.96]
[1763362823362,1.79096098,141.67,141.65,16.96]
[1763362823830,0.68,141.66,141.65,16.96]
[1763362825162,1.79096098,141.67,141.65,16.96]
[1763362825366,0.68,141.66,141.65,16.96]
[1763362827271,2.47096098,141.66,141.65,16.96]
[1763362827474,19.42363259,141.66,141.65,16.96]
[1763362828043,0.68,141.66,141.65,16.96]
[1763362828264,2.47096098,141.66,141.65,16.96]
[1763362830967,2.47096098,141.66,141.61,2.50096098]
[1763362831147,31.01048793,141.69,141.61,2.50096098]
[1763362831148,2.49096098,141.65,141.61,2.50096098]
[1763362832473,1.79096098,141.68,141.63,1.79096098]
[1763362832782,2.49096098,141.68,141.64,22.6512]
[1763362832973,0.7,141.67,141.64,23.3212]
[1763362833691,0.7,141.67,141.64,22.6512]
[1763362834684,1.79096098,141.68,141.64,30.38128919]
[1763362834889,2.49096098,141.68,141.64,30.38128919]
[1763362835473,0.7,141.67,141.64,30.38128919]
[1763362836456,2.49096098,141.69,141.65,0.67]
[1763362837862,0.7,141.68,141.65,0.67]
[1763362838068,0.7,141.68,141.66,22.6512]
[1763362838780,0.7,141.68,141.65,22.6512]
[1763362838990,2.49096098,141.68,141.65,22.6512]
[1763362839181,2.49096098,141.68,141.65,23.3212]
[1763362840692,2.49096098,141.68,141.65,0.67]
[1763362841192,1.79096098,141.66,141.64,22.6512]
[1763362841511,2.49096098,141.65,141.59,2.46096098]
[1763362841683,1.79096098,141.63,141.58,18.74363259]
[1763362841869,2.49096098,141.62,141.58,0.67]
[1763362842069,2.49096098,141.62,141.6,22.6512]
[1763362842568,0.7,141.61,141.6,22.6512]
[1763362842784,3.50004691,141.61,141.56,17.63]
[1763362842991,3.50004691,141.61,141.56,16.96]
[1763362842992,2.80004691,141.59,141.56,16.96]
[1763362843573,3.50004691,141.58,141.56,16.96]
[1763362843791,0.7,141.58,141.56,16.96]
[1763362843979,3.50004691,141.57,141.56,16.96]
[1763362844490,0.7,141.57,141.56,16.96]
[1763362844691,2.80004691,141.58,141.56,16.96]
[1763362845006,0.7,141.58,141.56,16.96]
[1763362845306,2.80004691,141.6,141.56,16.96]
[1763362845472,3.50004691,141.59,141.56,16.96]
[1763362845897,0.7,141.58,141.56,16.96]
[1763362846998,3.50004691,141.59,141.56,16.96]
[1763362847370,2.80004691,141.61,141.57,0.67]
[1763362847585,3.50004691,141.61,141.56,26.82412952]
[1763362847780,2.80004691,141.58,141.56,16.96]
[1763362848295,0.7,141.58,141.56,16.96]
[1763362848476,3.50004691,141.59,141.56,16.96]
[1763362849489,3.50004691,141.58,141.56,16.96]
[1763362849977,3.50004691,141.57,141.56,16.96]
[1763362853280,3.50004691,141.57,141.5,4.36119587]
[1763362853479,2.80004691,141.53,141.5,4.36119587]
[1763362853798,2.80004691,141.55,141.51,0.67]
[1763362854098,2.80004691,141.57,141.52,2.80004691]
[1763362854478,3.50004691,141.57,141.53,0.67]
[1763362854678,2.80004691,141.56,141.53,0.67]
[1763362855279,3.50004691,141.56,141.53,0.67]
[1763362855976,2.80004691,141.56,141.51,9.86645768]
[1763362856180,2.80004691,141.54,141.52,22.6512]
[1763362856377,2.80004691,141.53,141.5,3.69119587]
[1763362856581,2.80004691,141.54,141.51,0.67]
[1763362857103,3.50004691,141.54,141.51,0.67]
[1763362857608,3.50004691,141.54,141.5,22.6512]
[1763362857609,3.50004691,141.53,141.5,22.6512]
[1763362858119,3.50004691,141.53,141.5,23.3212]
[1763362858591,3.50004691,141.52,141.5,22.6512]
[1763362858800,2.80004691,141.51,141.48,0.77]
[1763362859016,2.80004691,141.51,141.49,22.6512]
[1763362859017,3.50004691,141.51,141.49,22.6512]
[1763362859218,3.50004691,141.51,141.48,0.77]
[1763362859519,2.80004691,141.52,141.49,22.6512]
[1763362859706,2.80004691,141.53,141.5,22.6512]
[1763362860200,2.80004691,141.54,141.51,0.67]
[1763362860394,0.7,141.55,141.51,0.67]
[1763362860395,3.50004691,141.55,141.51,0.67]
[1763362861097,0.67,141.57,141.52,2.80004691]
[1763362861298,3.47004691,141.57,141.53,0.67]
[1763362861900,3.47004691,141.56,141.53,0.67]
[1763362862100,2.80004691,141.56,141.53,0.67]
[1763362862318,2.80004691,141.57,141.53,0.67]
[1763362863018,2.80004691,141.56,141.53,0.67]
[1763362866610,2.80004691,141.56,141.53,7.73560601]
[1763362866806,2.80004691,141.59,141.54,3.47004691]
[1763362867008,2.80004691,141.6,141.55,2.80004691]
[1763362867308,2.80004691,141.6,141.56,0.67]
[1763362867509,3.47004691,141.59,141.56,0.67]
[1763362868100,2.80004691,141.57,141.54,23.3212]
[1763362868329,2.80004691,141.56,141.54,22.6512]
[1763362869225,0.67,141.61,141.55,3.47004691]
[1763362869406,2.80004691,141.59,141.55,3.47004691]
[1763362869606,2.80004691,141.59,141.56,0.67]
[1763362870703,3.47004691,141.59,141.56,0.67]
[1763362870907,2.80004691,141.58,141.56,0.67]
[1763362871343,2.80004691,141.58,141.54,25.45124691]
[1763362871513,2.80004691,141.57,141.54,23.3212]
[1763362871714,2.80004691,141.57,141.55,0.67]
[1763362871915,2.80004691,141.58,141.55,0.67]
[1763362872140,2.0,141.7,141.58,22.6512]
[1763362872436,2.0,141.7,141.59,0.67]
[1763362872437,2.80004691,141.66,141.59,0.67]
[1763362872638,2.80004691,141.63,141.59,0.67]
[1763362872933,2.80004691,141.64,141.59,3.47004691]
[1763362873342,0.67,141.66,141.6,3.47004691]
[1763362873632,2.80004691,141.67,141.62,2.80004691]
[1763362873811,2.80004691,141.66,141.62,2.80004691]
[1763362874010,2.80004691,141.66,141.63,0.67]
[1763362874218,0.67,141.68,141.63,3.47004691]
[1763362874219,3.47004691,141.68,141.63,3.47004691]
[1763362874747,2.80004691,141.65,141.61,0.67]
[1763362875040,2.80004691,141.65,141.61,3.47004691]
[1763362875220,2.80004691,141.65,141.62,0.67]
[1763362875616,2.80004691,141.67,141.62,3.47004691]
[1763362875933,3.47004691,141.68,141.63,9.86060661]
[1763362876140,3.47004691,141.68,141.63,10.53060661]
[1763362876320,3.47004691,141.68,141.64,0.67]
[1763362876546,3.47004691,141.67,141.64,22.6512]
[1763362876721,2.80004691,141.65,141.61,0.71]
[1763362876915,3.47004691,141.65,141.62,0.71]
[1763362877142,2.80004691,141.64,141.61,0.71]
[1763362878848,2.80004691,141.64,141.57,17.65794721]
[1763362878849,7.79801744,141.62,141.52,9.78882769]
[1763362879143,7.79801744,141.6,141.56,0.71]
[1763362880040,9.78882769,141.65,141.54,0.71]
[1763362880041,7.79801744,141.58,141.54,0.71]
[1763362880346,7.79801744,141.58,141.54,22.6512]
[1763362880529,7.79801744,141.57,141.52,14.86402177]
[1763362880731,7.79801744,141.57,141.54,0.71]
[1763362881252,7.79801744,141.56,141.52,0.71]
[1763362881574,7.79801744,141.56,141.53,0.71]
[1763362881848,8.46801744,141.56,141.52,0.71]
[1763362882533,7.79801744,141.54,141.51,16.98]
[1763362883037,8.46801744,141.54,141.51,17.69]
[1763362883426,8.46801744,141.54,141.51,16.98]
[1763362884430,7.79801744,141.54,141.51,16.98]
[1763362884745,8.46801744,141.53,141.51,16.98]
[1763362885256,7.79801744,141.55,141.52,0.71]
[1763362885631,7.79801744,141.55,141.51,16.98]
[1763362885632,8.46801744,141.55,141.51,16.98]
[1763362885947,8.46801744,141.55,141.51,17.69]
[1763362887538,0.67,141.57,141.52,0.71]
[1763362887734,7.79801744,141.55,141.51,16.98]
[1763362887951,7.79801744,141.54,141.51,16.98]
[1763362888339,8.46801744,141.54,141.51,16.98]
[1763362888539,7.79801744,141.54,141.51,17.69]
[1763362889153,7.79801744,141.56,141.52,0.71]
[1763362889342,8.46801744,141.56,141.52,0.71]
[1763362892150,7.79801744,141.56,141.52,8.50801744]
[1763362892357,0.7,141.58,141.52,15.57412035]
[1763362892358,7.79801744,141.57,141.52,15.57412035]
[1763362892658,7.79801744,141.57,141.53,0.7]
[1763362892829,8.49801744,141.57,141.53,0.7]
[1763362893030,8.49801744,141.57,141.53,8.49801744]
[1763362893444,8.49801744,141.57,141.53,0.7]
[1763362893868,8.49801744,141.56,141.51,8.49801744]
[1763362894241,8.49801744,141.56,141.52,0.7]
[1763362895262,0.7,141.56,141.52,8.49801744]
[1763362895433,0.7,141.56,141.53,0.7]
[1763362896585,7.79801744,141.57,141.53,0.7]
[1763362896766,7.79801744,141.59,141.54,7.79801744]
[1763362897058,8.49801744,141.59,141.53,31.14921744]
[1763362897259,0.7,141.58,141.53,31.14921744]
[1763362897465,7.79801744,141.59,141.54,8.49801744]
[1763362897839,8.49801744,141.59,141.55,0.7]
[1763362898247,8.49801744,141.59,141.54,7.79801744]
[1763362898248,7.79801744,141.57,141.53,23.3512]
[1763362898667,7.79801744,141.57,141.54,0.7]
[1763362898854,2.8014902,141.57,141.54,0.7]
[1763362899449,3.5014902,141.57,141.54,0.7]
[1763362900472,2.8014902,141.59,141.54,3.5014902]
[1763362900672,2.8014902,141.59,141.54,10.56641831]
[1763362900969,3.5014902,141.59,141.55,0.7]
[1763362901858,3.5014902,141.58,141.53,3.5014902]
[1763362902062,3.5014902,141.58,141.53,2.8014902]
[1763362902358,3.5014902,141.58,141.54,0.7]
[1763362902872,2.8014902,141.59,141.54,26.1526902]
[1763362903070,2.8014902,141.59,141.54,23.3512]
[1763362903271,3.5014902,141.58,141.55,0.7]
[1763362904354,0.7,141.58,141.55,0.7]
[1763362905774,2.4925499,141.58,141.55,0.7]
[1763362908582,2.4925499,141.57,141.54,22.6512]
[1763362909050,2.4925499,141.57,141.54,23.3512]
[1763362909876,1.7925499,141.58,141.54,23.3512]
[1763362910255,2.4925499,141.58,141.55,0.7]
[1763362912653,2.4925499,141.58,141.54,22.6512]
[1763362912654,2.4925499,141.57,141.52,25.1437499]
[1763362912850,2.4925499,141.57,141.5,0.7]
[1763362912851,1.7925499,141.54,141.5,0.7]
[1763362913053,120.05902729,141.6,141.5,0.7]
[1763362913054,1.7925499,141.53,141.5,0.7]
[1763362913452,0.7,141.54,141.5,0.7]
[1763362913654,2.4925499,141.54,141.5,0.7]
[1763362914091,2.4925499,141.54,141.5,7.76710787]
[1763362914253,2.4925499,141.54,141.5,9.55965777]
[1763362914461,1.7925499,141.54,141.51,0.7]
[1763362914781,2.4925499,141.54,141.51,0.7]
[1763362915583,1.7925499,141.54,141.51,0.7]
[1763362916583,2.4925499,141.54,141.51,0.7]
[1763362917988,0.7,141.54,141.51,0.7]
[1763362918886,1.7925499,141.55,141.51,0.7]
[1763362919108,2.4925499,141.55,141.51,0.7]
[1763362919612,2.4925499,141.55,141.51,7.76654603]
[1763362919898,2.4925499,141.55,141.52,0.7]
[1763362920572,2.4925499,141.55,141.51,0.67]
[1763362920573,0.68,141.54,141.51,0.67]
[1763362920873,0.68,141.57,141.52,0.67]
[1763362921078,2.4725499,141.57,141.52,32.17986885]
[1763362921679,1.7925499,141.58,141.53,2.4625499]
[1763362921881,1.7925499,141.59,141.54,2.4625499]
[1763362922089,0.68,141.58,141.54,2.4625499]
[1763362922387,2.4725499,141.58,141.54,2.4625499]
[1763362922573,1.7925499,141.57,141.54,0.67]
[1763362922773,2.4725499,141.57,141.54,0.67]
[1763362923170,1.7925499,141.58,141.54,0.67]
[1763362923368,0.68,141.59,141.54,2.4625499]
[1763362923567,2.4725499,141.59,141.54,2.4625499]
[1763362923868,2.4725499,141.59,141.55,0.67]
[1763362924068,0.68,141.58,141.55,0.67]
[1763362925079,2.4725499,141.58,141.55,0.67]
[1763362925498,2.4725499,141.57,141.53,22.6512]
[1763362925714,1.7925499,141.57,141.54,0.67]
[1763362926009,2.4725499,141.57,141.54,0.67]
[1763362926669,0.68,141.56,141.53,22.6512]
[1763362926896,0.68,141.56,141.53,23.3212]
[1763362927205,1.7925499,141.54,141.51,0.67]
[1763362927595,2.4725499,141.54,141.51,0.67]
[1763362928172,1.7925499,141.54,141.51,0.67]
[1763362928482,1.7925499,141.56,141.52,1.7925499]
[1763362929124,2.4725499,141.56,141.53,0.67]
[1763362929805,2.4725499,141.56,141.52,0.67]
[1763362930111,2.4725499,141.55,141.51,0.67]
[1763362930270,110.2701996,141.6,141.52,0.67]
[1763362930271,1.7925499,141.56,141.52,0.67]
[1763362930481,1.7925499,141.56,141.52,2.4625499]
[1763362930914,2.4725499,141.56,141.53,0.67]
[1763362931604,2.4725499,141.56,141.51,8.85918086]